bitfinex/quotes_BTCUSD_20250224
["timestamp","ask_amount","ask_price","bid_price","bid_amount"]
[1740427220722,0.31161575,94043.0,94042.0,0.005]
[1740427220938,0.31061575,94043.0,94042.0,0.002]
[1740427221148,0.159504,94041.0,94040.0,0.0008496]
[1740427221354,0.3113653,94041.0,94040.0,0.0008496]
[1740427221520,0.309504,94041.0,94040.0,0.0008496]
[1740427222636,0.32616412,94041.0,94040.0,0.0028496]
[1740427224626,0.34070497,94041.0,94040.0,0.0028496]
[1740427224836,0.44335066,94041.0,94040.0,0.0028496]
[1740427225061,0.44335066,94041.0,94040.0,0.0048496]
[1740427225296,0.42880981,94041.0,94040.0,0.0048496]
[1740427225504,0.32616412,94041.0,94040.0,0.0048496]
[1740427225716,0.94335312,94041.0,94040.0,0.0048496]
[1740427225928,0.32616412,94041.0,94040.0,0.0048496]
[1740427226139,0.34070497,94041.0,94040.0,0.0048496]
[1740427226351,0.32616412,94041.0,94040.0,0.0048496]
[1740427226785,0.309504,94041.0,94040.0,0.0048496]
[1740427226967,0.159506,94040.0,94039.0,0.011241]
[1740427227438,0.00181535,94043.0,94039.0,0.011241]
[1740427227670,0.159506,94040.0,94039.0,0.011241]
[1740427227887,0.00181535,94043.0,94039.0,0.11388669]
[1740427228107,0.16131735,94043.0,94040.0,0.11603436]
[1740427228344,0.159504,94041.0,94040.0,0.11603436]
[1740427228557,0.00181535,94043.0,94040.0,0.11403436]
[1740427228773,0.00281535,94043.0,94040.0,0.11403436]
[1740427229008,0.159503,94042.0,94041.0,0.01373954]
[1740427229225,0.159503,94042.0,94041.0,0.11638523]
[1740427229448,0.159503,94042.0,94041.0,0.01273954]
[1740427229672,0.159504,94041.0,94040.0,0.002]
[1740427229867,0.00281535,94043.0,94030.0,0.3224]
[1740427230003,0.159516,94035.0,94031.0,0.10264569]
[1740427230252,0.159511,94037.0,94031.0,0.10264569]
[1740427230439,0.212682,94038.0,94031.0,0.10264569]
[1740427230617,0.159518,94033.0,94032.0,0.01026457]
[1740427230818,0.21267,94042.0,94032.0,0.11291026]
[1740427231024,0.161503,94042.0,94041.0,0.007]
[1740427231218,0.161503,94042.0,94041.0,0.003]
[1740427231476,0.159516,94034.0,94033.0,0.10264569]
[1740427231719,0.159516,94034.0,94033.0,0.11433672]
[1740427231917,0.213682,94038.0,94033.0,0.11333672]
[1740427232114,0.001,94038.0,94033.0,0.11333672]
[1740427232291,0.212675,94040.0,94033.0,0.11333672]
[1740427232469,0.160516,94034.0,94033.0,0.11633672]
[1740427232677,0.002,94034.0,94033.0,0.12033672]
[1740427233890,0.00181535,94043.0,94033.0,0.11333672]
[1740427234100,0.159515,94035.0,94034.0,0.01895367]
[1740427234309,0.15,94035.0,94034.0,0.01895367]
[1740427234548,0.00181535,94043.0,94034.0,0.10264569]
[1740427234750,0.00181535,94043.0,94035.0,0.10164569]
[1740427234953,0.212673,94041.0,94035.0,0.10064569]
[1740427235150,0.159508,94039.0,94035.0,0.10064569]
[1740427235426,0.159513,94036.0,94035.0,0.10064569]
[1740427235642,0.159513,94036.0,94035.0,0.10971026]
[1740427235887,0.00281535,94043.0,94035.0,0.10971026]
[1740427236549,0.15,94042.0,94035.0,0.10971026]
[1740427236752,0.00281535,94043.0,94035.0,0.10971026]
[1740427236966,0.21267,94042.0,94035.0,0.10971026]
[1740427237191,0.001,94039.0,94036.0,0.01097103]
[1740427237398,0.001,94039.0,94037.0,0.10264569]
[1740427237840,0.001,94041.0,94038.0,0.0821]
[1740427238062,0.001,94041.0,94039.0,0.10264569]
[1740427238472,0.00181535,94043.0,94039.0,0.10264569]
[1740427238677,0.00181535,94043.0,94040.0,0.04156177]
[1740427238965,0.00181535,94043.0,94041.0,0.10264569]
[1740427239724,0.00181535,94043.0,94042.0,0.14794569]
[1740427240316,0.00181535,94043.0,94042.0,0.14594569]
[1740427240956,0.00281535,94043.0,94042.0,0.15294569]
[1740427241160,0.00381535,94043.0,94042.0,0.1884434]
[1740427242583,0.16331635,94043.0,94042.0,0.1431434]
[1740427242782,0.16331635,94043.0,94042.0,0.11364569]
[1740427243581,0.31331635,94043.0,94042.0,0.013]
[1740427244292,0.31231635,94043.0,94042.0,0.006]
[1740427244485,0.309516,94034.0,94033.0,0.0008504]
[1740427245638,0.309516,94034.0,94033.0,0.10349609]
[1740427245818,0.309516,94034.0,94033.0,0.1138457]
[1740427246668,0.159503,94042.0,94033.0,0.1138457]
[1740427246918,0.00381535,94043.0,94033.0,0.1138457]
[1740427246919,0.00181535,94043.0,94034.0,0.10264569]
[1740427247136,0.00181535,94043.0,94035.0,0.01635457]
[1740427247368,0.15,94037.0,94036.0,0.10164569]
[1740427247572,0.15,94037.0,94036.0,0.10064569]
[1740427247780,0.309511,94037.0,94036.0,0.10064569]
[1740427247984,0.309511,94037.0,94036.0,0.11903572]
[1740427248439,0.309515,94035.0,94034.0,0.006]
[1740427249696,0.159516,94034.0,94033.0,0.0008504]
[1740427249908,0.159516,94034.0,94033.0,0.10349609]
[1740427250115,0.159516,94034.0,94033.0,0.1138457]
[1740427250534,0.309516,94034.0,94033.0,0.01120001]
[1740427250741,0.309516,94034.0,94033.0,0.0008504]
[1740427251192,0.309516,94034.0,94033.0,0.0078504]
[1740427251193,0.310516,94034.0,94033.0,0.0078504]
[1740427251515,0.311516,94034.0,94033.0,4e-07]
[1740427252084,0.152,94034.0,94033.0,0.10264609]
[1740427252297,0.152,94034.0,94033.0,0.1129107]
[1740427252522,0.002,94034.0,94033.0,0.2724287]
[1740427252733,0.002,94034.0,94033.0,0.1129107]
[1740427252941,0.001,94034.0,94033.0,0.1129103]
[1740427253148,0.00181535,94043.0,94035.0,0.159514]
[1740427253347,0.00181535,94043.0,94036.0,0.15245167]
[1740427253571,0.00181535,94043.0,94036.0,0.15173009]
[1740427254013,0.00181535,94043.0,94036.0,0.10264569]
[1740427254229,0.00181535,94043.0,94036.0,0.10064569]
[1740427254665,0.159511,94038.0,94036.0,0.10064569]
[1740427254873,0.00381535,94043.0,94036.0,0.10964569]
[1740427255080,0.16331635,94043.0,94036.0,0.10964569]
[1740427255270,0.16331635,94043.0,94037.0,0.01199103]
[1740427255470,0.00381535,94043.0,94038.0,0.10264569]
[1740427255609,0.159508,94039.0,94038.0,0.10264569]
[1740427255811,0.00381535,94043.0,94038.0,0.10264569]
[1740427256007,0.00281535,94043.0,94038.0,0.10264569]
[1740427256271,0.159506,94040.0,94039.0,0.01269013]
[1740427256491,0.159506,94040.0,94039.0,0.11433582]
[1740427256856,0.00181535,94043.0,94039.0,0.11433582]
[1740427257018,0.00281535,94043.0,94040.0,0.10264569]
[1740427257687,0.00181535,94043.0,94041.0,0.0811]
[1740427257848,0.00181535,94043.0,94042.0,0.12286142]
[1740427258063,0.00181535,94043.0,94042.0,0.12186142]
[1740427258265,0.00281535,94043.0,94042.0,0.12186142]
[1740427258885,0.16231635,94043.0,94042.0,0.12186142]
[1740427259080,0.00281535,94043.0,94042.0,0.12186142]
[1740427259419,0.00181535,94043.0,94042.0,0.12186142]
[1740427260235,0.16131635,94043.0,94042.0,0.12186142]
[1740427260444,0.00181535,94043.0,94042.0,0.12186142]
[1740427260634,0.00281535,94043.0,94042.0,0.12886142]
[1740427260887,0.00281535,94043.0,94042.0,0.12186142]
[1740427261088,0.00281535,94043.0,94042.0,0.12886142]
[1740427261360,0.00381535,94043.0,94042.0,0.12758282]
[1740427261574,0.00381535,94043.0,94042.0,0.73466442]
[1740427261808,0.00381535,94043.0,94042.0,0.57516142]
[1740427262700,0.00381535,94043.0,94042.0,0.58216142]
[1740427262907,0.00181535,94043.0,94042.0,0.57016142]
[1740427263116,0.00181535,94043.0,94042.0,0.57716142]
[1740427263462,0.00181535,94043.0,94042.0,0.57016142]
[1740427263672,0.00181535,94043.0,94042.0,0.57716142]
[1740427263861,0.00181535,94043.0,94042.0,0.58416142]
[1740427265403,0.00181535,94043.0,94042.0,0.74366442]
[1740427266104,0.15,94078.0,94042.0,0.59170227]
[1740427266308,0.02998742,94109.0,94069.0,0.10264569]
[1740427266309,0.077,94101.0,94069.0,0.10264569]
[1740427266509,0.00998742,94109.0,94076.0,0.0758]
[1740427266708,0.00998742,94109.0,94077.0,0.00071952]
[1740427266913,0.00998742,94109.0,94076.0,0.0758]
[1740427266914,0.02951445,94109.0,94076.0,0.0758]
[1740427267135,0.16184707,94109.0,94076.0,0.0758]
[1740427267344,0.15998742,94109.0,94086.0,0.10264569]
[1740427267504,0.15,94109.0,94086.0,0.10264569]
[1740427267717,0.0467,94118.0,94086.0,0.10264569]
[1740427267912,0.09446198,94110.0,94086.0,0.10264569]
[1740427268112,0.09446198,94110.0,94088.0,0.10264569]
[1740427268319,0.09446198,94110.0,94089.0,0.04329581]
[1740427268610,0.09446198,94110.0,94090.0,0.10264569]
[1740427268802,0.09446198,94110.0,94093.0,0.10264569]
[1740427269762,0.00185954,94109.0,94093.0,0.10264569]
[1740427269899,0.09446198,94110.0,94093.0,0.10264569]
[1740427270121,0.09446198,94110.0,94094.0,0.01462222]
[1740427270330,0.00012991,94110.0,94095.0,0.10264569]
[1740427270532,2.27e-05,94110.0,94095.0,0.10264569]
[1740427272924,2.27e-05,94110.0,94095.0,0.10864569]
[1740427273058,2.27e-05,94110.0,94095.0,0.11464569]
[1740427273263,2.27e-05,94110.0,94096.0,0.04942444]
[1740427273459,0.02,94098.0,94097.0,0.10264569]
[1740427273672,2.27e-05,94110.0,94097.0,0.11291026]
[1740427273899,0.3265,94127.0,94097.0,0.11291026]
[1740427273900,0.02,94108.0,94097.0,0.11291026]
[1740427274102,0.02,94108.0,94097.0,0.11304017]
[1740427275285,0.02,94108.0,94098.0,0.00071898]
[1740427275528,0.2248217,94127.0,94099.0,0.10264569]
[1740427275738,0.02,94113.0,94100.0,0.01270402]
[1740427275957,0.02,94111.0,94101.0,0.10264569]
[1740427276162,0.0017006,94110.0,94101.0,0.10264569]
[1740427276657,0.0017006,94110.0,94102.0,0.08381866]
[1740427276871,0.0017006,94110.0,94103.0,0.10264569]
[1740427277084,0.0017006,94110.0,94104.0,0.02512983]
[1740427277332,0.0017006,94110.0,94105.0,0.10336439]
[1740427277532,0.0017006,94110.0,94106.0,0.00071857]
[1740427277743,0.0017006,94110.0,94107.0,0.10264569]
[1740427278072,0.0017006,94110.0,94109.0,0.10264569]
[1740427278253,0.0017006,94110.0,94109.0,0.12380509]
[1740427278509,0.0017006,94110.0,94109.0,0.10264569]
[1740427279491,0.0017006,94110.0,94109.0,0.10964569]
[1740427279829,0.0017006,94110.0,94109.0,0.11564569]
[1740427280030,0.0017006,94110.0,94109.0,0.10264569]
[1740427280234,0.0017006,94110.0,94109.0,0.11664569]
[1740427280433,0.0017006,94110.0,94109.0,0.12131026]
[1740427280843,0.0017006,94110.0,94109.0,0.12831026]
[1740427281375,0.0017006,94110.0,94109.0,0.12131026]
[1740427281848,0.0017006,94110.0,94109.0,0.12831026]
[1740427282051,0.0017006,94110.0,94109.0,0.129029]
[1740427282252,0.0017006,94110.0,94109.0,0.12131026]
[1740427282568,0.0017006,94110.0,94109.0,0.20991026]
[1740427282750,0.0017006,94110.0,94109.0,0.20291026]
[1740427282985,0.0017006,94110.0,94109.0,0.20991026]
[1740427284015,0.0017006,94110.0,93642.0,60.0]
[1740427284220,0.0017006,94110.0,92822.0,0.0140914]
[1740427284221,0.00183037,94110.0,94109.0,0.10264569]
[1740427284999,0.00183037,94110.0,94109.0,0.10336398]
[1740427285198,0.00183037,94110.0,94109.0,0.10264569]
[1740427285994,0.00183037,94110.0,94109.0,0.10964569]
[1740427286218,0.00183037,94110.0,94109.0,0.11664569]
[1740427286601,0.00183037,94110.0,94109.0,0.12931826]
[1740427287424,0.0768217,94127.0,94109.0,0.12931826]
[1740427287641,0.02533666,94127.0,94126.0,0.10264569]
[1740427287894,0.16353241,94160.0,94126.0,0.10264569]
[1740427288108,0.00012982,94146.0,94132.0,0.10264569]
[1740427288351,0.00012982,94146.0,94133.0,0.12619916]
[1740427288828,0.00012982,94146.0,94135.0,0.10264569]
[1740427289071,0.00012982,94146.0,94136.0,0.00071706]
[1740427289299,0.00012982,94146.0,94137.0,0.10264569]
[1740427289536,0.00112982,94146.0,94137.0,0.10264569]
[1740427289760,0.00112982,94146.0,94138.0,0.0142562]
[1740427289999,0.00112982,94146.0,94139.0,0.10264569]
[1740427290681,0.00012982,94146.0,94139.0,0.10264569]
[1740427291152,0.00012982,94146.0,94139.0,0.10336278]
[1740427291847,0.00012982,94146.0,94139.0,0.11036278]
[1740427292070,0.00012982,94146.0,94140.0,0.0124619]
[1740427292292,0.00012982,94146.0,94141.0,0.10264569]
[1740427293015,0.00112982,94146.0,94141.0,0.10264569]
[1740427293258,0.00112982,94146.0,94145.0,0.10264569]
[1740427293463,0.00212982,94146.0,94145.0,0.10264569]
[1740427293674,0.00212982,94146.0,94145.0,0.12449306]
[1740427294822,0.00012982,94146.0,94145.0,0.12449306]
[1740427295065,0.00012982,94146.0,94145.0,0.11272569]
[1740427295276,0.00012982,94146.0,94145.0,0.125175]
[1740427295586,0.00012982,94146.0,94145.0,0.139175]
[1740427295796,0.00012982,94146.0,94145.0,0.115095]
[1740427296233,0.00012982,94146.0,94145.0,0.129095]
[1740427297833,0.00012982,94146.0,94145.0,0.122095]
[1740427298189,0.00112982,94146.0,94145.0,0.129095]
[1740427298400,0.00112982,94146.0,94145.0,0.122095]
[1740427298601,0.00012982,94146.0,94145.0,0.122095]
[1740427298979,0.00112982,94146.0,94145.0,0.122095]
[1740427299201,0.00112982,94146.0,94145.0,0.129095]
[1740427299461,0.00112982,94146.0,94145.0,0.122095]
[1740427299882,0.00112982,94146.0,94145.0,0.129095]
[1740427301148,0.00012982,94146.0,94145.0,0.115095]
[1740427301387,0.00012982,94146.0,94145.0,0.129095]
[1740427301619,0.00112982,94146.0,94145.0,0.14334323]
[1740427301855,0.00012982,94146.0,94145.0,0.14334323]
[1740427302087,0.00012982,94146.0,94145.0,0.13634323]
[1740427302323,0.3265,94157.0,94145.0,0.14334323]
[1740427302565,0.31094845,94157.0,94156.0,0.10264569]
[1740427304262,0.30098386,94157.0,94156.0,0.10264569]
[1740427304461,0.45298386,94157.0,94156.0,0.10964569]
[1740427304843,0.44283208,94157.0,94156.0,0.10964569]
[1740427304984,0.44283208,94157.0,94156.0,0.13857496]
[1740427305204,0.44383208,94157.0,94156.0,0.14557496]
[1740427305417,0.15343263,94157.0,94156.0,0.14557496]
[1740427307699,0.14064892,94157.0,94156.0,0.14557496]
[1740427307932,0.08034115,94157.0,94156.0,0.14557496]
[1740427308144,0.07734115,94157.0,94156.0,0.13157496]
[1740427308522,0.07834115,94157.0,94156.0,0.14557496]
[1740427308933,0.07734115,94157.0,94156.0,0.13157496]
[1740427309160,0.07734115,94157.0,94156.0,0.14557496]
[1740427309407,0.001,94157.0,94113.0,0.15]
[1740427309642,0.001,94157.0,94156.0,0.10264569]
[1740427310549,0.09573081,94160.0,94156.0,0.007]
[1740427310994,0.15,94158.0,94156.0,0.007]
[1740427311636,0.15,94158.0,94126.0,0.007]
[1740427311867,0.15,94156.0,94131.0,0.10264569]
[1740427312083,0.15,94156.0,94132.0,0.01030783]
[1740427312287,0.15,94156.0,94133.0,0.26199469]
[1740427312694,0.15,94156.0,94134.0,0.212463]
[1740427312899,0.15,94156.0,94139.0,0.212449]
[1740427313083,0.15,94156.0,94140.0,0.14714589]
[1740427313317,0.15,94156.0,94143.0,0.159332]
[1740427313625,0.082,94149.0,94140.0,0.0445002]
[1740427313834,0.15,94147.0,94141.0,0.10264569]
[1740427314045,0.15,94147.0,94126.0,0.00043263]
[1740427314046,0.02,94140.0,94126.0,0.00043263]
[1740427314252,0.2317,94139.0,94127.0,0.10264569]
[1740427314466,0.93069945,94138.0,94128.0,0.01100783]
[1740427314671,0.93069945,94138.0,94128.0,0.11365352]
[1740427315341,0.15,94134.0,94128.0,0.11365352]
[1740427315553,0.159355,94129.0,94128.0,0.01100783]
[1740427315760,0.15,94128.0,94127.0,0.006]
[1740427317111,0.1219,94129.0,94127.0,0.006]
[1740427317317,0.1219,94129.0,94126.0,0.00043263]
[1740427317522,0.1219,94129.0,94128.0,0.007]
[1740427317766,0.1219,94129.0,94128.0,0.10964569]
[1740427318183,0.2719,94129.0,94128.0,0.10964569]
[1740427318384,0.2719,94129.0,94128.0,0.10264569]
[1740427318606,0.2729,94129.0,94128.0,0.10264569]
[1740427318925,0.2739,94129.0,94128.0,0.10264569]
[1740427319249,0.2749,94129.0,94128.0,0.10964569]
[1740427319465,0.2749,94129.0,94128.0,0.12135352]
[1740427319865,0.2739,94129.0,94128.0,0.12135352]
[1740427320124,0.2749,94129.0,94128.0,0.12835352]
[1740427320332,0.56529945,94129.0,94128.0,0.12835352]
[1740427320547,0.56529945,94129.0,94128.0,0.02570783]
[1740427320748,1.19278599,94129.0,94126.0,0.00043263]
[1740427320898,0.48979985,94127.0,94126.0,0.00043263]
[1740427321119,0.15,94095.0,94062.0,0.7]
[1740427321334,0.29039945,94094.0,94072.0,0.10264569]
[1740427321570,0.15,94093.0,94073.0,0.01026457]
[1740427321786,0.1259,94096.0,94074.0,0.10264569]
[1740427321787,0.15,94091.0,94074.0,0.10264569]
[1740427322038,0.17,94083.0,94073.0,0.01026457]
[1740427322204,0.02,94083.0,94063.0,0.159467]
[1740427322414,0.02,94083.0,94064.0,0.10264569]
[1740427322602,0.02,94083.0,94075.0,0.09377293]
[1740427323698,0.00830995,94083.0,94075.0,0.09377293]
[1740427324362,0.15,94076.0,94075.0,0.09377293]
[1740427324584,0.91069945,94076.0,94075.0,0.09677293]
[1740427324741,0.91069945,94076.0,94075.0,0.09577293]
[1740427325106,1.1563544,94076.0,94075.0,0.09677293]
[1740427325311,1.17089525,94076.0,94075.0,0.09677293]
[1740427325519,1.17089525,94076.0,94075.0,0.10645022]
[1740427325718,1.17189525,94076.0,94075.0,0.10745022]
[1740427326068,1.17189525,94076.0,94075.0,0.10545022]
[1740427326276,0.02,94073.0,94032.0,0.15]
[1740427326506,0.02,94073.0,94042.0,0.10277546]
[1740427326684,0.02,94073.0,94056.0,0.159479]
[1740427326926,0.15,94071.0,94057.0,0.10264569]
[1740427328134,0.76069945,94072.0,94068.0,0.21261]
[1740427328342,0.15024729,94070.0,94069.0,0.10264569]
[1740427328516,0.15024729,94070.0,94069.0,0.26210269]
[1740427328817,0.15024729,94070.0,94069.0,0.13749888]
[1740427329035,0.15024729,94070.0,94069.0,0.10264569]
[1740427329403,0.15024729,94070.0,94069.0,0.26210269]
[1740427330006,0.15024729,94070.0,94069.0,0.10264569]
[1740427330211,0.15124729,94070.0,94069.0,0.10264569]
[1740427330430,0.15224729,94070.0,94069.0,0.10264569]
[1740427330634,0.15224729,94070.0,94069.0,0.27236726]
[1740427332980,0.11220484,94070.0,94069.0,0.27236726]
[1740427333397,0.01949011,94091.0,94090.0,0.159421]
[1740427333635,0.01949011,94091.0,94090.0,0.26206669]
[1740427334303,0.01949011,94109.0,94108.0,0.159391]
[1740427334522,0.01949011,94109.0,94108.0,0.10264569]
[1740427335690,0.02049011,94109.0,94108.0,0.12657001]
[1740427335921,0.02149011,94109.0,94108.0,0.11164569]
[1740427336380,0.02049011,94109.0,94108.0,0.10464569]
[1740427336900,0.02049011,94109.0,94108.0,0.10964569]
[1740427336901,0.01949011,94109.0,94108.0,0.10964569]
[1740427337103,0.01949011,94109.0,94108.0,0.11464569]
[1740427337372,0.01949011,94109.0,94108.0,0.10964569]
[1740427337586,0.01949011,94109.0,94108.0,0.26903669]
[1740427337775,0.01949011,94118.0,94115.0,0.159379]
[1740427338088,0.01949011,94118.0,94109.0,0.212519]
[1740427338089,0.01949011,94118.0,94116.0,0.10264569]
[1740427339856,0.02049011,94118.0,94116.0,0.10964569]
[1740427340272,0.02049011,94118.0,94116.0,0.11564569]
[1740427340477,0.02149011,94118.0,94116.0,0.11564569]
[1740427341091,0.01949011,94117.0,94085.0,0.01008]
[1740427341310,0.01949011,94116.0,94107.0,0.159391]
[1740427341507,0.01949011,94116.0,94108.0,0.10264569]
[1740427343826,0.02049011,94116.0,94108.0,0.10864569]
[1740427344698,0.02149011,94116.0,94108.0,0.10864569]
[1740427347603,0.02149011,94116.0,94115.0,0.16755361]
[1740427347834,0.02149011,94116.0,94115.0,0.1108203]
[1740427348033,0.02149011,94116.0,94115.0,0.2701993]
[1740427348442,0.02149011,94116.0,94115.0,0.1108203]
[1740427348752,0.02049011,94116.0,94115.0,0.1108203]
[1740427348963,0.02149011,94116.0,94115.0,0.1118203]
[1740427349275,0.01949011,94116.0,94115.0,0.1108203]
[1740427349690,0.02149011,94116.0,94115.0,0.11064569]
[1740427350319,0.02149011,94116.0,94115.0,0.27002469]
[1740427351270,0.02149011,94116.0,94115.0,0.11064569]
[1740427352076,0.02318971,94116.0,94115.0,0.11064569]
[1740427353175,0.54498971,94116.0,94115.0,0.11064569]
[1740427353998,0.54498971,94116.0,94115.0,0.13210366]
[1740427356098,0.54468872,94116.0,94115.0,0.13210366]
[1740427356306,1.03350657,94116.0,94115.0,0.008]
[1740427356514,0.212579,94083.0,94051.0,0.008]
[1740427356721,0.212579,94083.0,94049.0,0.03]
[1740427356722,0.54068912,94082.0,94071.0,0.10264569]
[1740427357823,0.309439,94080.0,94071.0,0.10264569]
[1740427358024,0.15,94080.0,94071.0,0.10264569]
[1740427358856,0.212587,94079.0,94071.0,0.007]
[1740427359074,0.49279285,94072.0,94071.0,0.007]
[1740427359285,0.34399485,94071.0,94070.0,0.00097957]
[1740427359490,0.44199485,94071.0,94070.0,0.00097957]
[1740427359638,0.98268397,94071.0,94070.0,0.00097957]
[1740427360399,1.08532966,94071.0,94070.0,0.00397957]
[1740427360602,0.078,94046.0,94034.0,0.00783628]
[1740427360846,0.078,94046.0,94034.0,0.10264569]
[1740427360847,0.212666,94044.0,94034.0,0.10264569]
[1740427361048,0.159515,94035.0,94012.0,0.159552]
[1740427361180,0.01454085,94042.0,94018.0,0.212724]
[1740427361395,0.01454085,94042.0,94010.0,0.00043348]
[1740427361396,0.01454085,94042.0,94022.0,0.212714]
[1740427361719,0.54068912,94043.0,94024.0,0.00808935]
[1740427361926,0.54068912,94043.0,94025.0,0.10264569]
[1740427362130,0.54068912,94043.0,94026.0,0.212707]
[1740427362396,0.001,94042.0,94027.0,0.10264569]
[1740427362595,0.001,94042.0,94039.0,0.159508]
[1740427362799,0.54068912,94041.0,94027.0,0.10264569]
[1740427363335,0.54068912,94041.0,94038.0,0.159508]
[1740427363541,0.54068912,94041.0,94038.0,0.10264569]
[1740427363909,0.54068912,94041.0,94038.0,0.10307917]
[1740427364425,0.54068912,94041.0,94038.0,0.00043348]
[1740427364637,0.54168912,94041.0,94038.0,0.00043348]
[1740427365052,0.54068912,94041.0,94038.0,0.00043348]
[1740427365541,0.54168912,94041.0,94038.0,0.00543348]
[1740427365740,0.54268912,94041.0,94038.0,0.00543348]
[1740427366500,0.54168912,94041.0,94038.0,0.00543348]
[1740427367577,0.54168912,94041.0,94038.0,0.10807917]
[1740427367779,0.54168912,94041.0,94039.0,0.10264569]
[1740427368026,0.01918912,94041.0,94039.0,0.10264569]
[1740427368224,0.02018912,94041.0,94039.0,0.26215169]
[1740427368402,0.02018912,94041.0,94039.0,0.10264569]
[1740427368628,0.02018912,94041.0,94040.0,0.159506]
[1740427368831,0.02018912,94041.0,94040.0,0.26215169]
[1740427369079,0.02018912,94041.0,94001.0,0.01008]
[1740427369280,0.02062138,94041.0,94040.0,0.26215169]
[1740427369479,0.01962138,94041.0,94040.0,0.26215169]
[1740427369706,0.01962138,94041.0,94040.0,0.10264569]
[1740427369922,0.02162138,94041.0,94040.0,0.10764569]
[1740427370137,0.02062138,94041.0,94040.0,0.10764569]
[1740427370357,0.02162138,94041.0,94040.0,0.10764569]
[1740427371570,0.01962138,94041.0,94040.0,0.10264569]
[1740427371892,0.02162138,94041.0,94040.0,0.10364569]
[1740427373431,0.02162138,94041.0,94040.0,0.26315169]
[1740427373658,0.15,94059.0,94051.0,0.159487]
[1740427373888,0.5215,94060.0,94052.0,0.10264569]
[1740427374111,0.5215,94060.0,94052.0,0.31529369]
[1740427374342,0.5215,94060.0,94059.0,0.159474]
[1740427374576,0.5215,94060.0,94059.0,0.10264569]
[1740427374795,0.848,94060.0,94059.0,0.26211969]
[1740427375014,0.3265,94060.0,94059.0,0.26211969]
[1740427376180,0.31265051,94060.0,94059.0,0.26211969]
[1740427376418,0.31365051,94060.0,94059.0,0.26211969]
[1740427376871,0.26348793,94060.0,94059.0,0.26911969]
[1740427377096,0.2340231,94060.0,94059.0,0.27611969]
[1740427378104,0.20207999,94060.0,94059.0,0.27611969]
[1740427378505,0.19655436,94060.0,94059.0,0.27611969]
[1740427379291,0.08326618,94060.0,94059.0,0.27611969]
[1740427379540,0.0016996,94070.0,94069.0,0.159457]
[1740427379742,0.0016996,94070.0,94069.0,0.26210269]
[1740427381609,0.0026996,94070.0,94069.0,0.26910269]
[1740427381812,0.0036996,94070.0,94069.0,0.27610269]
[1740427382224,0.0026996,94070.0,94069.0,0.26910269]
[1740427382552,0.0016996,94070.0,94069.0,0.26210269]
[1740427382783,0.0026996,94070.0,94069.0,0.27610269]
[1740427382990,0.0036996,94070.0,94069.0,0.27610269]
[1740427383188,0.0026996,94070.0,94069.0,0.26210269]
[1740427383393,0.0036996,94070.0,94069.0,0.26910269]
[1740427383594,0.0036996,94070.0,94069.0,0.41910269]
[1740427384707,0.0016996,94070.0,94069.0,0.41910269]
[1740427384932,0.0016996,94070.0,94069.0,0.42610269]
[1740427385131,0.0016996,94070.0,94069.0,0.41210269]
[1740427385306,0.0016996,94070.0,94069.0,0.41910269]
[1740427385511,0.0016996,94070.0,94069.0,0.42610269]
[1740427385712,0.0016996,94070.0,94069.0,0.45103669]
[1740427385888,0.0016996,94070.0,94069.0,0.44403669]
[1740427386087,0.0016996,94070.0,94069.0,0.45803669]
[1740427386547,0.0016996,94070.0,94069.0,0.45103669]
[1740427387567,0.0016996,94070.0,94069.0,0.47247914]
[1740427387818,0.0016996,94070.0,94069.0,0.16302214]
[1740427388043,0.0016996,94070.0,94069.0,0.13108814]
[1740427388455,0.0016996,94070.0,94069.0,0.13808814]
[1740427388661,0.0016996,94070.0,94069.0,0.13108814]
[1740427388865,0.0016996,94070.0,94069.0,0.28354514]
[1740427389071,0.0016996,94070.0,94069.0,0.29754514]
[1740427389294,0.0016996,94070.0,94069.0,0.29054514]
[1740427389500,0.0016996,94070.0,94069.0,0.28354514]
[1740427389714,0.0016996,94070.0,94069.0,0.29754514]
[1740427389921,0.0016996,94070.0,94069.0,0.29054514]
[1740427390953,0.0016996,94070.0,94069.0,0.28354514]
[1740427391168,0.0016996,94070.0,94069.0,0.29054514]
[1740427391996,0.0016996,94070.0,94069.0,0.44054514]
[1740427392207,0.32012304,94077.0,94070.0,0.15]
[1740427392420,0.0819,94102.0,94101.0,0.159403]
[1740427392626,0.0819,94102.0,94101.0,0.26204869]
[1740427392833,0.0819,94102.0,94101.0,0.10264569]
[1740427394270,0.0819,94102.0,94101.0,0.26904869]
[1740427394694,0.2977905,94111.0,94110.0,0.159387]
[1740427394907,0.29792017,94111.0,94110.0,0.26203269]
[1740427395323,0.29792017,94111.0,94110.0,0.10264569]
[1740427395473,0.29792017,94111.0,94103.0,0.00989637]
[1740427395648,0.29792017,94111.0,94104.0,0.10264569]
[1740427395852,0.29792017,94111.0,94110.0,0.007]
[1740427396079,0.29792017,94111.0,94110.0,0.014]
[1740427396843,0.29792017,94111.0,94110.0,0.11664569]
[1740427397246,0.29792017,94111.0,94110.0,0.10964569]
[1740427397666,0.29792017,94111.0,94110.0,0.10264569]
[1740427398079,0.45730617,94111.0,94110.0,0.007]
[1740427398279,0.53690617,94111.0,94110.0,0.007]
[1740427398489,0.329394,94106.0,94105.0,0.00989637]
[1740427398726,0.49263485,94106.0,94105.0,0.00989637]
[1740427399091,0.89307104,94106.0,94105.0,0.00989637]
[1740427399229,0.89307104,94106.0,94073.0,0.02774357]
[1740427399230,0.00548394,94093.0,94073.0,0.02774357]
[1740427399431,0.2977905,94092.0,94074.0,0.10264569]
[1740427400892,0.2977905,94092.0,94091.0,0.15942]
[1740427401100,0.29818705,94092.0,94091.0,0.10264569]
[1740427401719,0.29718705,94092.0,94091.0,0.10264569]
[1740427401932,0.29818705,94092.0,94091.0,0.10264569]
[1740427402134,0.29918705,94092.0,94091.0,0.10964569]
[1740427402340,0.29818705,94092.0,94091.0,0.26906569]
[1740427402797,0.29918705,94092.0,94091.0,0.11664569]
[1740427403031,0.29918705,94092.0,94091.0,0.27606569]
[1740427403425,0.29918705,94092.0,94091.0,0.11664569]
[1740427403633,0.29918705,94092.0,94091.0,0.27606569]
[1740427405569,0.29911267,94092.0,94091.0,0.27606569]
[1740427405863,0.002,94092.0,94091.0,0.27606569]
[1740427406848,0.002,94092.0,94091.0,0.26906569]
[1740427406997,0.001,94092.0,94091.0,0.26906569]
[1740427407425,0.001,94092.0,94091.0,0.27606569]
[1740427408522,0.001,94092.0,94091.0,0.29724167]
[1740427409678,0.001,94092.0,94091.0,0.33037623]
[1740427411307,0.001,94092.0,94091.0,0.32337623]